[Event "Titled Tuesday Blitz July 13 2021"]
[White "Ozen, Bahadir"]
[Black "Priasmoro, Novendra"]
[WhiteFideId "6337058"]
[BlackFideId "7105029"]
[WhiteElo "2503"]
[BlackElo "2309"]
[Result "1-0"]
[Round "05"]
[TimeControl "180+1"]
[Date "2021.07.13"]
[WhiteClock "0:00:08"]
[BlackClock "0:00:10"]

1. Nf3 {[%clk 0:02:59]}  Nf6 {[%clk 0:02:59]} 2. d4 {[%clk 0:02:58]}  g6 {[%clk 0:03:00]} 3. e3 {[%clk 0:02:58]}  Bg7 {[%clk 0:03:00]} 4. Be2 {[%clk 0:02:58]}  O-O {[%clk 0:03:01]} 5. O-O {[%clk 0:02:58]}  d6 {[%clk 0:03:00]} 6. c4 {[%clk 0:02:58]}  Nc6 {[%clk 0:02:57]} 7. d5 {[%clk 0:02:57]}  Nb8 {[%clk 0:02:55]} 8. Nc3 {[%clk 0:02:57]}  c6 {[%clk 0:02:55]} 9. e4 {[%clk 0:02:50]}  cxd5 {[%clk 0:02:52]} 10. exd5 {[%clk 0:02:48]}  a5 {[%clk 0:02:51]} 11. Be3 {[%clk 0:02:43]}  Na6 {[%clk 0:02:45]} 12. Nd4 {[%clk 0:02:36]}  Nc5 {[%clk 0:02:45]} 13. Qc2 {[%clk 0:02:26]}  Bd7 {[%clk 0:02:40]} 14. Rac1 {[%clk 0:02:25]}  Re8 {[%clk 0:02:41]} 15. Rfd1 {[%clk 0:02:24]}  Ng4 {[%clk 0:02:40]} 16. Bxg4 {[%clk 0:02:23]}  Bxg4 {[%clk 0:02:41]} 17. f3 {[%clk 0:02:23]}  Bd7 {[%clk 0:02:41]} 18. Qd2 {[%clk 0:02:21]}  Rc8 {[%clk 0:02:39]} 19. Bh6 {[%clk 0:02:16]}  Bh8 {[%clk 0:02:38]} 20. Re1 {[%clk 0:02:14]}  Qb6 {[%clk 0:02:38]} 21. Be3 {[%clk 0:02:11]}  Qb4 {[%clk 0:02:35]} 22. b3 {[%clk 0:02:07]}  a4 {[%clk 0:02:32]} 23. Rb1 {[%clk 0:01:31]}  axb3 {[%clk 0:02:24]} 24. axb3 {[%clk 0:01:30]}  Ra8 {[%clk 0:02:22]} 25. Qc2 {[%clk 0:01:22]}  Ra6 {[%clk 0:02:01]} 26. g4 {[%clk 0:01:18]}  Bf6 {[%clk 0:01:59]} 27. Bf2 {[%clk 0:01:16]}  Rea8 {[%clk 0:01:56]} 28. h3 {[%clk 0:00:42]}  Ra3 {[%clk 0:01:55]} 29. Ne4 {[%clk 0:00:36]}  Nxe4 {[%clk 0:01:49]} 30. Qxe4 {[%clk 0:00:35]}  Ra2 {[%clk 0:01:45]} 31. Re2 {[%clk 0:00:34]}  Rxe2 {[%clk 0:01:42]} 32. Qxe2 {[%clk 0:00:34]}  Qc3 {[%clk 0:01:39]} 33. Rd1 {[%clk 0:00:29]}  Ra1 {[%clk 0:01:36]} 34. Kg2 {[%clk 0:00:24]}  Be5 {[%clk 0:01:29]} 35. Rxa1 {[%clk 0:00:24]}  Qxa1 {[%clk 0:01:30]} 36. Qe3 {[%clk 0:00:23]}  Qb2 {[%clk 0:01:19]} 37. Ne2 {[%clk 0:00:18]}  e6 {[%clk 0:00:52]} 38. f4 {[%clk 0:00:17]}  Bg7 {[%clk 0:00:52]} 39. dxe6 {[%clk 0:00:17]}  fxe6 {[%clk 0:00:51]} 40. Nd4 {[%clk 0:00:14]}  e5 {[%clk 0:00:40]} 41. fxe5 {[%clk 0:00:14]}  Bxe5 {[%clk 0:00:41]} 42. Nf3 {[%clk 0:00:14]}  Bc6 {[%clk 0:00:41]} 43. Kg1 {[%clk 0:00:15]}  Qb1+ {[%clk 0:00:38]} 44. Kg2 {[%clk 0:00:15]}  Qd1 {[%clk 0:00:37]} 45. b4 {[%clk 0:00:13]}  b6 {[%clk 0:00:37]} 46. b5 {[%clk 0:00:13]}  Bb7 {[%clk 0:00:38]} 47. h4 {[%clk 0:00:09]}  Kf7 {[%clk 0:00:32]} 48. h5 {[%clk 0:00:09]}  Kg7 {[%clk 0:00:29]} 49. h6+ {[%clk 0:00:08]}  Kf7 {[%clk 0:00:30]} 50. Bg3 {[%clk 0:00:08]}  Bxg3 {[%clk 0:00:17]} 51. Kxg3 {[%clk 0:00:09]}  Qxf3+ {[%clk 0:00:11]} 52. Qxf3+ {[%clk 0:00:09]}  Bxf3 {[%clk 0:00:12]} 53. Kxf3 {[%clk 0:00:10]}  Kf6 {[%clk 0:00:11]} 54. Kf4 {[%clk 0:00:08]}  g5+ {[%clk 0:00:11]} 55. Ke4 {[%clk 0:00:09]}  Kg6 {[%clk 0:00:12]} 56. Kd5 {[%clk 0:00:09]}  Kxh6 {[%clk 0:00:12]} 57. Kxd6 {[%clk 0:00:10]}  Kg6 {[%clk 0:00:13]} 58. c5 {[%clk 0:00:09]}  h5 {[%clk 0:00:14]} 59. cxb6 {[%clk 0:00:09]}  hxg4 {[%clk 0:00:10]} 60. b7 {[%clk 0:00:09]}  g3 {[%clk 0:00:09]} 61. b8=Q {[%clk 0:00:08]}  g2 {[%clk 0:00:10]} 62. Qb6 {[%clk 0:00:08]}  Kf5 {[%clk 0:00:10]} 63. Qf2+ {[%clk 0:00:08]} 1-0


[Site "https://www.chess.com"]

[Event "Titled Tuesday Blitz July 13 2021"]
[White "Pan, Kevin"]
[Black "Papasimakopoulos, Alexandros"]
[WhiteFideId "30915708"]
[BlackFideId "4244125"]
[WhiteElo "2140"]
[BlackElo "2352"]
[Result "0-1"]
[Round "05"]
[TimeControl "180+1"]
[Date "2021.07.13"]
[WhiteClock "0:00:06"]
[BlackClock "0:00:45"]

1. e4 {[%clk 0:02:59]}  e6 {[%clk 0:02:58]} 2. d4 {[%clk 0:02:59]}  d5 {[%clk 0:02:58]} 3. Nc3 {[%clk 0:03:00]}  Bb4 {[%clk 0:02:57]} 4. e5 {[%clk 0:03:00]}  b6 {[%clk 0:02:56]} 5. a3 {[%clk 0:02:59]}  Bf8 {[%clk 0:02:56]} 6. Nf3 {[%clk 0:02:51]}  Ne7 {[%clk 0:02:55]} 7. g3 {[%clk 0:02:30]}  Ba6 {[%clk 0:02:54]} 8. Bg2 {[%clk 0:02:26]}  c5 {[%clk 0:02:51]} 9. Ne2 {[%clk 0:02:19]}  cxd4 {[%clk 0:02:46]} 10. O-O {[%clk 0:02:08]}  Nbc6 {[%clk 0:02:44]} 11. Re1 {[%clk 0:01:59]}  Nf5 {[%clk 0:02:32]} 12. Nexd4 {[%clk 0:01:35]}  Nfxd4 {[%clk 0:02:28]} 13. Nxd4 {[%clk 0:01:36]}  Qd7 {[%clk 0:02:26]} 14. Bf4 {[%clk 0:01:22]}  Nxd4 {[%clk 0:02:21]} 15. Qxd4 {[%clk 0:01:21]}  Bc5 {[%clk 0:02:22]} 16. Qd1 {[%clk 0:01:19]}  O-O {[%clk 0:02:21]} 17. Qg4 {[%clk 0:01:17]}  Kh8 {[%clk 0:02:13]} 18. Rad1 {[%clk 0:01:16]}  Qa4 {[%clk 0:02:01]} 19. c3 {[%clk 0:00:56]}  Rac8 {[%clk 0:01:54]} 20. h4 {[%clk 0:00:54]}  Qc2 {[%clk 0:01:32]} 21. Rd2 {[%clk 0:00:52]}  Qg6 {[%clk 0:01:31]} 22. Qh3 {[%clk 0:00:39]}  h5 {[%clk 0:01:22]} 23. Bf3 {[%clk 0:00:33]}  Rfd8 {[%clk 0:01:18]} 24. Red1 {[%clk 0:00:32]}  Bc4 {[%clk 0:01:17]} 25. Bg5 {[%clk 0:00:26]}  Rd7 {[%clk 0:01:11]} 26. Bxd5 {[%clk 0:00:21]}  Bxd5 {[%clk 0:01:07]} 27. Rxd5 {[%clk 0:00:21]}  Rxd5 {[%clk 0:01:07]} 28. Rxd5 {[%clk 0:00:21]}  Qb1+ {[%clk 0:01:06]} 29. Kh2 {[%clk 0:00:17]}  Bxf2 {[%clk 0:00:56]} 30. Kg2 {[%clk 0:00:05]}  Qg1+ {[%clk 0:00:49]} 31. Kf3 {[%clk 0:00:06]}  Bc5 {[%clk 0:00:48]} 32. Rd7 {[%clk 0:00:06]}  Qf2+ {[%clk 0:00:45]} 33. Ke4 {[%clk 0:00:06]}  Qe2+ {[%clk 0:00:45]} 34. Kf4 {[%clk 0:00:06]}  Be3+ {[%clk 0:00:45]} 35. Ke4 {[%clk 0:00:06]}  Bxg5+ {[%clk 0:00:45]} 0-1


[Site "https://www.chess.com"]

[Event "Titled Tuesday Blitz July 13 2021"]
[White "Paravyan, David"]
[Black "De Silva, L M S T"]
[WhiteFideId "4194985"]
[BlackFideId "9953698"]
[WhiteElo "2562"]
[BlackElo "1621"]
[Result "1-0"]
[Round "05"]
[TimeControl "180+1"]
[Date "2021.07.13"]
[WhiteClock "0:02:16"]
[BlackClock "0:00:59"]

1. c4 {[%clk 0:02:58]}  e5 {[%clk 0:03:00]} 2. Nc3 {[%clk 0:02:53]}  Nf6 {[%clk 0:02:59]} 3. d3 {[%clk 0:02:50]}  Nc6 {[%clk 0:02:58]} 4. Nf3 {[%clk 0:02:48]}  d5 {[%clk 0:02:56]} 5. cxd5 {[%clk 0:02:49]}  Nxd5 {[%clk 0:02:57]} 6. g3 {[%clk 0:02:49]}  Be7 {[%clk 0:02:57]} 7. Nxd5 {[%clk 0:02:46]}  Qxd5 {[%clk 0:02:56]} 8. Bg2 {[%clk 0:02:47]}  O-O {[%clk 0:02:54]} 9. O-O {[%clk 0:02:47]}  Qd8 {[%clk 0:02:53]} 10. Bd2 {[%clk 0:02:44]}  Be6 {[%clk 0:02:53]} 11. Bc3 {[%clk 0:02:44]}  Bd6 {[%clk 0:02:49]} 12. d4 {[%clk 0:02:44]}  exd4 {[%clk 0:02:19]} 13. Nxd4 {[%clk 0:02:45]}  Nxd4 {[%clk 0:02:20]} 14. Qxd4 {[%clk 0:02:45]}  f6 {[%clk 0:02:17]} 15. Bxb7 {[%clk 0:02:45]}  Be5 {[%clk 0:02:14]} 16. Qxd8 {[%clk 0:02:42]}  Raxd8 {[%clk 0:02:15]} 17. Bxe5 {[%clk 0:02:39]}  fxe5 {[%clk 0:02:16]} 18. Rfd1 {[%clk 0:02:39]}  Rb8 {[%clk 0:02:16]} 19. Bd5 {[%clk 0:02:37]}  Bxd5 {[%clk 0:02:13]} 20. Rxd5 {[%clk 0:02:38]}  Rxb2 {[%clk 0:02:14]} 21. Rxe5 {[%clk 0:02:38]}  Rd8 {[%clk 0:02:02]} 22. Rc1 {[%clk 0:02:38]}  Rd7 {[%clk 0:01:42]} 23. a4 {[%clk 0:02:37]}  Ra2 {[%clk 0:01:28]} 24. a5 {[%clk 0:02:36]}  h6 {[%clk 0:01:27]} 25. h4 {[%clk 0:02:28]}  Kh7 {[%clk 0:01:25]} 26. Kg2 {[%clk 0:02:28]}  c6 {[%clk 0:01:14]} 27. Rxc6 {[%clk 0:02:27]}  Rdd2 {[%clk 0:01:13]} 28. Rc7 {[%clk 0:02:25]}  a6 {[%clk 0:01:13]} 29. Ra7 {[%clk 0:02:25]}  Rd6 {[%clk 0:01:11]} 30. Ree7 {[%clk 0:02:23]}  Rg6 {[%clk 0:01:11]} 31. Re5 {[%clk 0:02:22]}  Rd6 {[%clk 0:01:11]} 32. Rb7 {[%clk 0:02:17]}  Rdd2 {[%clk 0:01:00]} 33. Ree7 {[%clk 0:02:16]}  Rxe2 {[%clk 0:01:00]} 34. Rxg7+ {[%clk 0:02:16]}  Kh8 {[%clk 0:01:00]} 35. Rgf7 {[%clk 0:02:17]}  Kg8 {[%clk 0:00:59]} 36. Rf5 {[%clk 0:02:16]} 1-0


[Site "https://www.chess.com"]

[Event "Titled Tuesday Blitz July 13 2021"]
[White "Piesik, Piotr"]
[Black "Buscar, Michael"]
[WhiteFideId "1136194"]
[BlackFideId "2603616"]
[WhiteElo "2354"]
[BlackElo "2010"]
[Result "1-0"]
[Round "05"]
[TimeControl "180+1"]
[Date "2021.07.13"]
[WhiteClock "0:01:27"]
[BlackClock "0:00:03"]

1. Nf3 {[%clk 0:03:00]}  Nf6 {[%clk 0:02:59]} 2. g3 {[%clk 0:03:01]}  g6 {[%clk 0:02:59]} 3. Bg2 {[%clk 0:03:00]}  Bg7 {[%clk 0:03:00]} 4. O-O {[%clk 0:03:01]}  O-O {[%clk 0:03:01]} 5. d4 {[%clk 0:03:01]}  d6 {[%clk 0:03:01]} 6. Nbd2 {[%clk 0:03:00]}  Nbd7 {[%clk 0:02:59]} 7. e4 {[%clk 0:03:00]}  e5 {[%clk 0:02:59]} 8. dxe5 {[%clk 0:03:00]}  dxe5 {[%clk 0:02:58]} 9. Qe2 {[%clk 0:03:00]}  Qe7 {[%clk 0:02:57]} 10. b3 {[%clk 0:03:00]}  Rd8 {[%clk 0:02:51]} 11. Bb2 {[%clk 0:03:00]}  Ne8 {[%clk 0:02:40]} 12. Nc4 {[%clk 0:02:58]}  b6 {[%clk 0:02:35]} 13. a4 {[%clk 0:02:58]}  Ba6 {[%clk 0:02:29]} 14. Rfd1 {[%clk 0:02:57]}  Nd6 {[%clk 0:02:27]} 15. Nfd2 {[%clk 0:02:57]}  Nxc4 {[%clk 0:02:25]} 16. Nxc4 {[%clk 0:02:58]}  Nc5 {[%clk 0:02:21]} 17. Bf1 {[%clk 0:02:54]}  Rxd1 {[%clk 0:02:14]} 18. Rxd1 {[%clk 0:02:53]}  Rd8 {[%clk 0:02:15]} 19. Rxd8+ {[%clk 0:02:52]}  Qxd8 {[%clk 0:02:15]} 20. Qd2 {[%clk 0:02:50]}  Qxd2 {[%clk 0:02:08]} 21. Nxd2 {[%clk 0:02:51]}  Bxf1 {[%clk 0:02:02]} 22. Kxf1 {[%clk 0:02:52]}  f6 {[%clk 0:02:02]} 23. f3 {[%clk 0:02:52]}  Kf7 {[%clk 0:02:01]} 24. Ke2 {[%clk 0:02:51]}  Ke6 {[%clk 0:01:57]} 25. Ba3 {[%clk 0:02:48]}  Bf8 {[%clk 0:01:55]} 26. Bxc5 {[%clk 0:02:47]}  Bxc5 {[%clk 0:01:54]} 27. c3 {[%clk 0:02:45]}  c6 {[%clk 0:01:52]} 28. b4 {[%clk 0:02:44]}  Be7 {[%clk 0:01:48]} 29. b5 {[%clk 0:02:41]}  Kd6 {[%clk 0:01:45]} 30. Nb3 {[%clk 0:02:35]}  Kc7 {[%clk 0:01:38]} 31. Kd3 {[%clk 0:02:34]}  h5 {[%clk 0:01:21]} 32. Kc4 {[%clk 0:02:32]}  Ba3 {[%clk 0:01:08]} 33. a5 {[%clk 0:02:23]}  Be7 {[%clk 0:01:01]} 34. a6 {[%clk 0:02:16]}  Ba3 {[%clk 0:00:48]} 35. g4 {[%clk 0:02:15]}  h4 {[%clk 0:00:33]} 36. h3 {[%clk 0:02:11]}  g5 {[%clk 0:00:31]} 37. Na1 {[%clk 0:02:03]}  Bc5 {[%clk 0:00:27]} 38. Nc2 {[%clk 0:02:01]}  Kd6 {[%clk 0:00:24]} 39. Ne1 {[%clk 0:01:52]}  Bg1 {[%clk 0:00:20]} 40. Nd3 {[%clk 0:01:51]}  c5 {[%clk 0:00:09]} 41. Nb2 {[%clk 0:01:46]}  Bf2 {[%clk 0:00:08]} 42. Kd3 {[%clk 0:01:45]}  Bg1 {[%clk 0:00:08]} 43. Nd1 {[%clk 0:01:44]}  Ke6 {[%clk 0:00:08]} 44. Nb2 {[%clk 0:01:37]}  Kd6 {[%clk 0:00:07]} 45. Nc4+ {[%clk 0:01:37]}  Kc7 {[%clk 0:00:07]} 46. Ke2 {[%clk 0:01:34]}  Kd7 {[%clk 0:00:07]} 47. Nxb6+ {[%clk 0:01:28]}  Kc7 {[%clk 0:00:04]} 48. Nd5+ {[%clk 0:01:28]}  Kd6 {[%clk 0:00:03]} 49. Nxf6 {[%clk 0:01:27]} 1-0


[Site "https://www.chess.com"]

[Event "Titled Tuesday Blitz July 13 2021"]
[White "Prraneeth Vuppala"]
[Black "Sjugirov, Sanan"]
[WhiteFideId "46622373"]
[BlackFideId "4189302"]
[WhiteElo "1759"]
[BlackElo "2472"]
[Result "0-1"]
[Round "05"]
[TimeControl "180+1"]
[Date "2021.07.13"]
[WhiteClock "0:00:01"]
[BlackClock "0:00:04"]

1. d4 {[%clk 0:03:00]}  Nf6 {[%clk 0:02:58]} 2. c4 {[%clk 0:03:00]}  e6 {[%clk 0:02:58]} 3. Nf3 {[%clk 0:03:00]}  d5 {[%clk 0:02:58]} 4. Nc3 {[%clk 0:03:00]}  Nbd7 {[%clk 0:02:56]} 5. Bf4 {[%clk 0:02:55]}  Bb4 {[%clk 0:02:55]} 6. e3 {[%clk 0:02:43]}  Ne4 {[%clk 0:02:53]} 7. Qb3 {[%clk 0:02:38]}  Bxc3+ {[%clk 0:02:47]} 8. bxc3 {[%clk 0:02:38]}  c6 {[%clk 0:02:41]} 9. Bd3 {[%clk 0:02:32]}  g5 {[%clk 0:02:36]} 10. Bxe4 {[%clk 0:02:18]}  gxf4 {[%clk 0:02:30]} 11. Bd3 {[%clk 0:02:16]}  fxe3 {[%clk 0:02:29]} 12. fxe3 {[%clk 0:02:16]}  b6 {[%clk 0:02:20]} 13. O-O {[%clk 0:02:11]}  Ba6 {[%clk 0:02:16]} 14. Rad1 {[%clk 0:02:03]}  Qe7 {[%clk 0:01:54]} 15. e4 {[%clk 0:01:43]}  dxe4 {[%clk 0:01:42]} 16. Bxe4 {[%clk 0:01:43]}  Bb7 {[%clk 0:01:42]} 17. a4 {[%clk 0:01:27]}  f5 {[%clk 0:01:39]} 18. Bxf5 {[%clk 0:01:24]}  O-O-O {[%clk 0:01:35]} 19. Rde1 {[%clk 0:01:13]}  Nc5 {[%clk 0:01:29]} 20. Qc2 {[%clk 0:01:05]}  Kb8 {[%clk 0:01:12]} 21. Bh3 {[%clk 0:01:03]}  Na6 {[%clk 0:01:12]} 22. Rxe6 {[%clk 0:01:01]}  Qa3 {[%clk 0:01:12]} 23. Ne5 {[%clk 0:00:58]}  Nc7 {[%clk 0:01:10]} 24. Nxc6+ {[%clk 0:00:53]}  Bxc6 {[%clk 0:01:09]} 25. Rxc6 {[%clk 0:00:54]}  Rhf8 {[%clk 0:01:09]} 26. Rcf6 {[%clk 0:00:49]}  Rxf6 {[%clk 0:01:09]} 27. Rxf6 {[%clk 0:00:50]}  Re8 {[%clk 0:01:06]} 28. Rf1 {[%clk 0:00:49]}  Re3 {[%clk 0:01:04]} 29. Qf2 {[%clk 0:00:41]}  Qxc3 {[%clk 0:01:03]} 30. c5 {[%clk 0:00:36]}  Qxd4 {[%clk 0:01:00]} 31. cxb6 {[%clk 0:00:33]}  axb6 {[%clk 0:01:01]} 32. Kh1 {[%clk 0:00:30]}  Re4 {[%clk 0:00:58]} 33. Qf8+ {[%clk 0:00:27]}  Re8 {[%clk 0:00:57]} 34. Qh6 {[%clk 0:00:23]}  Re7 {[%clk 0:00:49]} 35. g3 {[%clk 0:00:19]}  Ka7 {[%clk 0:00:41]} 36. Bg2 {[%clk 0:00:19]}  Qc3 {[%clk 0:00:26]} 37. a5 {[%clk 0:00:17]}  bxa5 {[%clk 0:00:24]} 38. Qf4 {[%clk 0:00:07]}  Qb4 {[%clk 0:00:10]} 39. Qf2+ {[%clk 0:00:07]}  Qb6 {[%clk 0:00:09]} 40. Qf8 {[%clk 0:00:06]}  Qb4 {[%clk 0:00:07]} 41. Qf3 {[%clk 0:00:05]}  Re1 {[%clk 0:00:06]} 42. h3 {[%clk 0:00:03]}  Rxf1+ {[%clk 0:00:06]} 43. Qxf1 {[%clk 0:00:04]}  Qb6 {[%clk 0:00:05]} 44. Qf3 {[%clk 0:00:04]}  a4 {[%clk 0:00:03]} 45. Kh2 {[%clk 0:00:04]}  Qb5 {[%clk 0:00:03]} 46. Qa3 {[%clk 0:00:03]}  Qa5 {[%clk 0:00:03]} 47. Qe3+ {[%clk 0:00:03]}  Qb6 {[%clk 0:00:03]} 48. Qc3 {[%clk 0:00:03]}  Na6 {[%clk 0:00:03]} 49. Qh8 {[%clk 0:00:03]}  Qc7 {[%clk 0:00:03]} 50. Qa8+ {[%clk 0:00:02]}  Kb6 {[%clk 0:00:03]} 51. Qe4 {[%clk 0:00:03]}  Nc5 {[%clk 0:00:03]} 52. Qb4+ {[%clk 0:00:03]}  Ka6 {[%clk 0:00:04]} 53. Bf1+ {[%clk 0:00:03]}  Ka7 {[%clk 0:00:04]} 54. h4 {[%clk 0:00:03]}  Qb6 {[%clk 0:00:04]} 55. Qd4 {[%clk 0:00:03]}  Qc7 {[%clk 0:00:03]} 56. Bg2 {[%clk 0:00:03]}  Qb6 {[%clk 0:00:03]} 57. Qg7+ {[%clk 0:00:03]}  Ka6 {[%clk 0:00:04]} 58. Bf1+ {[%clk 0:00:03]}  Ka5 {[%clk 0:00:04]} 59. Qe5 {[%clk 0:00:03]}  a3 {[%clk 0:00:04]} 60. Qe1+ {[%clk 0:00:02]}  Qb4 {[%clk 0:00:04]} 61. Qe7 {[%clk 0:00:01]}  Qb2+ {[%clk 0:00:04]} 62. Bg2 {[%clk 0:00:01]}  Kb4 {[%clk 0:00:04]} 0-1


[Site "https://www.chess.com"]

[Event "Titled Tuesday Blitz July 13 2021"]
[White "Quizon, Daniel"]
[Black "Madaminov, Mukhiddin"]
[WhiteFideId "5217911"]
[BlackFideId "14210703"]
[WhiteElo "2329"]
[BlackElo "1747"]
[Result "0-1"]
[Round "05"]
[TimeControl "180+1"]
[Date "2021.07.13"]
[WhiteClock "0:00:20"]
[BlackClock "0:00:16"]

1. e4 {[%clk 0:03:00]}  e5 {[%clk 0:02:59]} 2. Nf3 {[%clk 0:02:59]}  Nc6 {[%clk 0:03:00]} 3. Bb5 {[%clk 0:02:59]}  Nf6 {[%clk 0:03:00]} 4. d3 {[%clk 0:02:57]}  Bc5 {[%clk 0:02:59]} 5. c3 {[%clk 0:02:57]}  O-O {[%clk 0:02:53]} 6. O-O {[%clk 0:02:57]}  d6 {[%clk 0:02:53]} 7. h3 {[%clk 0:02:55]}  Bb6 {[%clk 0:02:48]} 8. Ba4 {[%clk 0:02:54]}  Ne7 {[%clk 0:02:47]} 9. Nbd2 {[%clk 0:02:53]}  c6 {[%clk 0:02:46]} 10. Re1 {[%clk 0:02:53]}  Ng6 {[%clk 0:02:45]} 11. Nf1 {[%clk 0:02:53]}  Nh5 {[%clk 0:02:45]} 12. d4 {[%clk 0:02:48]}  Nhf4 {[%clk 0:02:44]} 13. Bb3 {[%clk 0:02:46]}  h6 {[%clk 0:02:43]} 14. Be3 {[%clk 0:02:23]}  Qf6 {[%clk 0:02:41]} 15. Ng3 {[%clk 0:02:22]}  Be6 {[%clk 0:02:38]} 16. Bc2 {[%clk 0:02:20]}  Rad8 {[%clk 0:02:35]} 17. a4 {[%clk 0:02:12]}  Bc7 {[%clk 0:02:22]} 18. a5 {[%clk 0:02:01]}  Rfe8 {[%clk 0:02:21]} 19. a6 {[%clk 0:02:01]}  b5 {[%clk 0:02:18]} 20. Nf5 {[%clk 0:02:00]}  Bb6 {[%clk 0:02:00]} 21. Qc1 {[%clk 0:01:57]}  Bc4 {[%clk 0:01:44]} 22. Qd2 {[%clk 0:01:51]}  Be6 {[%clk 0:01:34]} 23. Rad1 {[%clk 0:01:44]}  Bc8 {[%clk 0:01:34]} 24. Qc1 {[%clk 0:01:41]}  Bxa6 {[%clk 0:01:31]} 25. dxe5 {[%clk 0:01:41]}  dxe5 {[%clk 0:01:32]} 26. Bxb6 {[%clk 0:01:42]}  axb6 {[%clk 0:01:32]} 27. Qe3 {[%clk 0:01:43]}  c5 {[%clk 0:01:30]} 28. b4 {[%clk 0:01:43]}  c4 {[%clk 0:01:10]} 29. Ra1 {[%clk 0:01:38]}  Bc8 {[%clk 0:01:11]} 30. Ra7 {[%clk 0:01:36]}  Bxf5 {[%clk 0:01:08]} 31. exf5 {[%clk 0:01:37]}  Nd5 {[%clk 0:01:09]} 32. Qc1 {[%clk 0:01:26]}  Ngf4 {[%clk 0:01:09]} 33. Be4 {[%clk 0:01:26]}  Nd3 {[%clk 0:01:06]} 34. Bxd3 {[%clk 0:01:20]}  cxd3 {[%clk 0:01:07]} 35. Nd2 {[%clk 0:01:17]}  Qxf5 {[%clk 0:01:07]} 36. c4 {[%clk 0:01:08]}  Nf4 {[%clk 0:01:02]} 37. Qd1 {[%clk 0:01:08]}  Qg5 {[%clk 0:01:00]} 38. Qf3 {[%clk 0:01:06]}  Nxh3+ {[%clk 0:00:45]} 39. Kf1 {[%clk 0:01:01]}  Nf4 {[%clk 0:00:45]} 40. g3 {[%clk 0:00:56]}  Ne6 {[%clk 0:00:16]} 41. Qxf7+ {[%clk 0:00:54]}  Kh8 {[%clk 0:00:17]} 42. Nf3 {[%clk 0:00:54]}  Qf6 {[%clk 0:00:17]} 43. Nxe5 {[%clk 0:00:52]}  d2 {[%clk 0:00:18]} 44. Rd1 {[%clk 0:00:49]}  Qxe5 {[%clk 0:00:17]} 45. Rxd2 {[%clk 0:00:48]}  Rxd2 {[%clk 0:00:16]} 46. Qxe8+ {[%clk 0:00:48]}  Kh7 {[%clk 0:00:17]} 47. Qf7 {[%clk 0:00:38]}  Qe2+ {[%clk 0:00:15]} 48. Kg2 {[%clk 0:00:32]}  Qe4+ {[%clk 0:00:15]} 49. Kh2 {[%clk 0:00:28]}  Rd1 {[%clk 0:00:15]} 50. f3 {[%clk 0:00:20]}  Qe2+ {[%clk 0:00:15]} 51. Kh3 {[%clk 0:00:20]}  Ng5+ {[%clk 0:00:16]} 0-1


[Site "https://www.chess.com"]

[Event "Titled Tuesday Blitz July 13 2021"]
[White "Rustemov, Alexander"]
[Black "Terry, Renato"]
[WhiteFideId "4119002"]
[BlackFideId "3803457"]
[WhiteElo "2770"]
[BlackElo "2581"]
[Result "1-0"]
[Round "05"]
[TimeControl "180+1"]
[Date "2021.07.13"]
[WhiteClock "0:01:00"]
[BlackClock "0:00:01"]

1. d4 {[%clk 0:03:00]}  d5 {[%clk 0:02:55]} 2. c4 {[%clk 0:03:01]}  c6 {[%clk 0:02:55]} 3. Nc3 {[%clk 0:03:00]}  Nf6 {[%clk 0:02:55]} 4. e3 {[%clk 0:03:00]}  a6 {[%clk 0:02:55]} 5. Qc2 {[%clk 0:02:54]}  g6 {[%clk 0:02:53]} 6. Nf3 {[%clk 0:02:52]}  Bg7 {[%clk 0:02:53]} 7. Bd3 {[%clk 0:02:51]}  O-O {[%clk 0:02:50]} 8. O-O {[%clk 0:02:51]}  b5 {[%clk 0:02:29]} 9. b3 {[%clk 0:02:49]}  Nbd7 {[%clk 0:02:26]} 10. Bb2 {[%clk 0:02:45]}  Bb7 {[%clk 0:02:25]} 11. Rfd1 {[%clk 0:02:25]}  Qb8 {[%clk 0:02:18]} 12. h3 {[%clk 0:02:22]}  Rc8 {[%clk 0:02:17]} 13. c5 {[%clk 0:02:20]}  a5 {[%clk 0:02:12]} 14. a3 {[%clk 0:02:20]}  Ne8 {[%clk 0:02:05]} 15. b4 {[%clk 0:02:19]}  f5 {[%clk 0:01:45]} 16. Ne2 {[%clk 0:02:16]}  Nc7 {[%clk 0:01:08]} 17. Bc3 {[%clk 0:02:10]}  axb4 {[%clk 0:00:50]} 18. axb4 {[%clk 0:02:09]}  Rxa1 {[%clk 0:00:51]} 19. Rxa1 {[%clk 0:02:09]}  Nf6 {[%clk 0:00:52]} 20. Ne5 {[%clk 0:02:03]}  Rd8 {[%clk 0:00:48]} 21. Qa2 {[%clk 0:01:52]}  Nd7 {[%clk 0:00:44]} 22. f4 {[%clk 0:01:50]}  Nxe5 {[%clk 0:00:41]} 23. dxe5 {[%clk 0:01:49]}  Ne6 {[%clk 0:00:40]} 24. Nd4 {[%clk 0:01:46]}  Nxd4 {[%clk 0:00:39]} 25. Bxd4 {[%clk 0:01:43]}  Qa8 {[%clk 0:00:39]} 26. Qa7 {[%clk 0:01:35]}  Qxa7 {[%clk 0:00:33]} 27. Rxa7 {[%clk 0:01:35]}  Rb8 {[%clk 0:00:34]} 28. g4 {[%clk 0:01:28]}  e6 {[%clk 0:00:34]} 29. Kf2 {[%clk 0:01:22]}  Bf8 {[%clk 0:00:27]} 30. Kg3 {[%clk 0:01:21]}  Bg7 {[%clk 0:00:17]} 31. h4 {[%clk 0:01:20]}  Bf8 {[%clk 0:00:16]} 32. h5 {[%clk 0:01:16]}  Bh6 {[%clk 0:00:09]} 33. Kf3 {[%clk 0:01:03]}  Bf8 {[%clk 0:00:09]} 34. Bc3 {[%clk 0:01:02]}  Bg7 {[%clk 0:00:08]} 35. Be1 {[%clk 0:01:02]}  Kf8 {[%clk 0:00:02]} 36. Bh4 {[%clk 0:01:02]}  Kg8 {[%clk 0:00:02]} 37. Bf6 {[%clk 0:01:00]}  Bxf6 {[%clk 0:00:01]} 38. exf6 {[%clk 0:01:00]} 1-0


[Site "https://www.chess.com"]